[Event "Early-Titled-Tuesday-Blitz-May-28-2024"]
[Site "Chess.com"]
[Date "2024.05.28"]
[Round "3"]
[White "aanshnerurkar"]
[Black "ChessSwole"]
[Result "0-1"]
[WhiteElo "2491"]
[BlackElo "2706"]
[TimeControl "180+1"]
[EndTime "8:28:53 PDT"]
[Termination "ChessSwole won on time"]

1. e4 {[%clk 0:03:00.9]} 1... c6 {[%clk 0:03:00.2]} 2. d4 {[%clk 0:03:00.1]}
2... d5 {[%clk 0:03:00.4]} 3. f3 {[%clk 0:02:51.1]} 3... dxe4 {[%clk 0:03:00.4]}
4. fxe4 {[%clk 0:02:50.4]} 4... e5 {[%clk 0:03:01]} 5. Nf3 {[%clk 0:02:50.2]}
5... Bg4 {[%clk 0:03:01.6]} 6. Bc4 {[%clk 0:02:41.6]} 6... Nd7 {[%clk
0:02:58.7]} 7. O-O {[%clk 0:02:40.3]} 7... Ngf6 {[%clk 0:02:44.2]} 8. c3 {[%clk
0:02:16.9]} 8... Bd6 {[%clk 0:02:43]} 9. Nbd2 {[%clk 0:01:59.3]} 9... O-O {[%clk
0:02:38.2]} 10. Bb3 {[%clk 0:01:56.5]} 10... b5 {[%clk 0:02:37.8]} 11. h3 {[%clk
0:01:50.1]} 11... Bh5 {[%clk 0:02:36]} 12. Bc2 {[%clk 0:01:49.4]} 12... Qb6
{[%clk 0:02:23.6]} 13. Kh1 {[%clk 0:01:40.8]} 13... Rae8 {[%clk 0:02:20.4]} 14.
Qe1 {[%clk 0:01:27.7]} 14... Bg6 {[%clk 0:02:08]} 15. a4 {[%clk 0:01:04.8]}
15... a6 {[%clk 0:01:54]} 16. a5 {[%clk 0:00:53.8]} 16... Qa7 {[%clk 0:01:53.7]}
17. Qd1 {[%clk 0:00:19.7]} 17... exd4 {[%clk 0:01:48.9]} 18. Nxd4 {[%clk
0:00:18.9]} 18... Nh5 {[%clk 0:01:30.9]} 19. Kg1 {[%clk 0:00:08]} 19... c5
{[%clk 0:01:16.1]} 20. N4f3 {[%clk 0:00:06.8]} 20... Ndf6 {[%clk 0:00:59.9]} 21.
Re1 {[%clk 0:00:03.2]} 21... Bg3 {[%clk 0:00:57.8]} 22. Re2 {[%clk 0:00:03]}
22... Nf4 {[%clk 0:00:57.7]} 23. Re3 {[%clk 0:00:03.3]} 23... N6d5 {[%clk
0:00:53.3]} 24. Nf1 {[%clk 0:00:01.9]} 24... Nxe3 {[%clk 0:00:32.9]} 25. Bxe3
{[%clk 0:00:02.2]} 25... Nh5 {[%clk 0:00:33.4]} 26. Qd5 {[%clk 0:00:02.1]} 26...
Rc8 {[%clk 0:00:20.3]} 27. Nxg3 {[%clk 0:00:01]} 27... Nxg3 {[%clk 0:00:20.5]}
28. Bf2 {[%clk 0:00:01.5]} 28... Rfd8 {[%clk 0:00:19.6]} 29. Qe5 {[%clk
0:00:01.3]} 29... Nh5 {[%clk 0:00:18.8]} 30. g4 {[%clk 0:00:01.5]} 30... Re8
{[%clk 0:00:18.9]} 31. Qg5 {[%clk 0:00:01.9]} 31... h6 {[%clk 0:00:18.2]} 32.
Qh4 {[%clk 0:00:01.8]} 32... Nf4 {[%clk 0:00:18.2]} 33. Qg3 {[%clk 0:00:01.7]}
33... Ne2+ {[%clk 0:00:18.3]} 34. Kg2 {[%clk 0:00:02]} 34... Nxg3 {[%clk
0:00:19.2]} 35. Kxg3 {[%clk 0:00:02.5]} 35... Bxe4 {[%clk 0:00:19.9]} 36. Bd3
{[%clk 0:00:02.3]} 36... Bxd3 {[%clk 0:00:20]} 0-1

[Event "Early-Titled-Tuesday-Blitz-May-28-2024"]
[Site "Chess.com"]
[Date "2024.05.28"]
[Round "3"]
[White "Kirill_Klukin"]
[Black "crazy_but_lazy"]
[Result "1/2-1/2"]
[WhiteElo "2898"]
[BlackElo "2680"]
[TimeControl "180+1"]
[EndTime "8:28:55 PDT"]
[Termination "Game drawn by repetition"]

1. d4 {[%clk 0:03:00.9]} 1... Nf6 {[%clk 0:02:59.6]} 2. Nf3 {[%clk 0:03:01.1]}
2... e6 {[%clk 0:02:58.9]} 3. e3 {[%clk 0:03:01.4]} 3... b6 {[%clk 0:02:57.5]}
4. Bd3 {[%clk 0:03:01.8]} 4... Bb7 {[%clk 0:02:57.9]} 5. O-O {[%clk 0:03:02.1]}
5... d5 {[%clk 0:02:58.1]} 6. b3 {[%clk 0:03:02.2]} 6... Nbd7 {[%clk 0:02:58.4]}
7. Bb2 {[%clk 0:03:03]} 7... Bd6 {[%clk 0:02:51]} 8. Nbd2 {[%clk 0:03:03.1]}
8... O-O {[%clk 0:02:51.3]} 9. Qe2 {[%clk 0:03:03.5]} 9... Ne4 {[%clk
0:02:47.3]} 10. c4 {[%clk 0:02:04.5]} 10... Nxd2 {[%clk 0:02:37.1]} 11. Nxd2
{[%clk 0:01:58.9]} 11... c5 {[%clk 0:02:25.1]} 12. cxd5 {[%clk 0:01:56.5]} 12...
Bxd5 {[%clk 0:02:21.6]} 13. e4 {[%clk 0:01:23.9]} 13... Bb7 {[%clk 0:02:18.2]}
14. e5 {[%clk 0:01:24.1]} 14... Be7 {[%clk 0:02:15.1]} 15. Be4 {[%clk
0:01:24.3]} 15... Bxe4 {[%clk 0:02:03.4]} 16. Nxe4 {[%clk 0:01:24.4]} 16... cxd4
{[%clk 0:02:02.8]} 17. Bxd4 {[%clk 0:01:24.4]} 17... Rc8 {[%clk 0:01:55.7]} 18.
Rad1 {[%clk 0:01:22.4]} 18... Qc7 {[%clk 0:01:55.6]} 19. Nd6 {[%clk 0:01:09.4]}
19... Bxd6 {[%clk 0:01:54.8]} 20. exd6 {[%clk 0:01:10.3]} 20... Qc6 {[%clk
0:01:55.5]} 21. Qg4 {[%clk 0:01:08]} 21... e5 {[%clk 0:01:48.4]} 22. Bb2 {[%clk
0:00:58.3]} 22... Rfe8 {[%clk 0:01:48.6]} 23. Rc1 {[%clk 0:00:52.4]} 23... Qb7
{[%clk 0:01:32]} 24. Rfd1 {[%clk 0:00:49.2]} 24... Re6 {[%clk 0:01:07.9]} 25.
Rxc8+ {[%clk 0:00:25.6]} 25... Qxc8 {[%clk 0:01:07.6]} 26. g3 {[%clk 0:00:21.9]}
26... h6 {[%clk 0:00:52.1]} 27. Qe2 {[%clk 0:00:16.2]} 27... Qc6 {[%clk
0:00:38.3]} 28. Ba3 {[%clk 0:00:16.3]} 28... e4 {[%clk 0:00:17.3]} 29. Rc1
{[%clk 0:00:16.3]} 29... Qd5 {[%clk 0:00:17.7]} 30. Qc4 {[%clk 0:00:05.3]} 30...
Qf5 {[%clk 0:00:15.2]} 31. Qc8+ {[%clk 0:00:04]} 31... Kh7 {[%clk 0:00:09.2]}
32. Qxd7 {[%clk 0:00:04.3]} 32... e3 {[%clk 0:00:09.9]} 33. fxe3 {[%clk
0:00:04.7]} 33... Qf3 {[%clk 0:00:10.6]} 34. Re1 {[%clk 0:00:01.9]} 34... Rxe3
{[%clk 0:00:10.8]} 35. Rxe3 {[%clk 0:00:02.2]} 35... Qxe3+ {[%clk 0:00:11.7]}
36. Kg2 {[%clk 0:00:03]} 36... Qe2+ {[%clk 0:00:12.2]} 37. Kh3 {[%clk
0:00:03.6]} 37... Qh5+ {[%clk 0:00:12.5]} 38. Kg2 {[%clk 0:00:03.7]} 38... Qe2+
{[%clk 0:00:13]} 39. Kg1 {[%clk 0:00:04.4]} 39... Qe1+ {[%clk 0:00:13.6]} 40.
Kg2 {[%clk 0:00:04.9]} 40... Qe2+ {[%clk 0:00:14.3]} 1/2-1/2

[Event "Early-Titled-Tuesday-Blitz-May-28-2024"]
[Site "Chess.com"]
[Date "2024.05.28"]
[Round "3"]
[White "ProtectiveCarrot"]
[Black "sergeikim"]
[Result "0-1"]
[WhiteElo "2429"]
[BlackElo "2610"]
[TimeControl "180+1"]
[EndTime "8:28:56 PDT"]
[Termination "sergeikim won by resignation"]

1. e4 {[%clk 0:03:00.9]} 1... e5 {[%clk 0:02:59.7]} 2. Nf3 {[%clk 0:03:00.5]}
2... Nc6 {[%clk 0:02:59.9]} 3. Bb5 {[%clk 0:03:00.9]} 3... a6 {[%clk 0:03:00.2]}
4. Ba4 {[%clk 0:03:01.5]} 4... Nf6 {[%clk 0:03:00.4]} 5. O-O {[%clk 0:03:01]}
5... b5 {[%clk 0:03:00.6]} 6. Bb3 {[%clk 0:03:00.8]} 6... Bc5 {[%clk 0:03:00.4]}
7. a4 {[%clk 0:03:00.7]} 7... Bb7 {[%clk 0:02:59.3]} 8. c3 {[%clk 0:02:48]} 8...
d6 {[%clk 0:02:58.9]} 9. d4 {[%clk 0:02:46]} 9... Bb6 {[%clk 0:02:59]} 10. Re1
{[%clk 0:02:36.4]} 10... h6 {[%clk 0:02:57.5]} 11. h3 {[%clk 0:02:35.2]} 11...
O-O {[%clk 0:02:57.3]} 12. Be3 {[%clk 0:02:30.2]} 12... Re8 {[%clk 0:02:49.5]}
13. Nbd2 {[%clk 0:02:29]} 13... exd4 {[%clk 0:02:41.4]} 14. cxd4 {[%clk
0:02:16.3]} 14... Nb4 {[%clk 0:02:41.2]} 15. a5 {[%clk 0:02:05]} 15... Ba7
{[%clk 0:02:39.6]} 16. d5 {[%clk 0:01:51]} 16... Nd3 {[%clk 0:02:33]} 17. Re2
{[%clk 0:01:50.3]} 17... Bxe3 {[%clk 0:01:58.9]} 18. Rxe3 {[%clk 0:01:49.7]}
18... Nf4 {[%clk 0:01:48.8]} 19. Nd4 {[%clk 0:01:42.6]} 19... g6 {[%clk
0:01:40.5]} 20. Qf3 {[%clk 0:01:32.8]} 20... N4h5 {[%clk 0:01:39.3]} 21. Rc1
{[%clk 0:01:06.5]} 21... Nd7 {[%clk 0:01:27.4]} 22. g3 {[%clk 0:00:52.6]} 22...
Rc8 {[%clk 0:01:16.3]} 23. Qe2 {[%clk 0:00:40]} 23... Qf6 {[%clk 0:01:06.7]} 24.
N2f3 {[%clk 0:00:38.8]} 24... Ne5 {[%clk 0:00:53.3]} 25. Nxe5 {[%clk 0:00:37.8]}
25... Qxe5 {[%clk 0:00:53.4]} 26. Nc6 {[%clk 0:00:35.8]} 26... Qf6 {[%clk
0:00:46.4]} 27. f4 {[%clk 0:00:28.4]} 27... Bxc6 {[%clk 0:00:37.4]} 28. Rxc6
{[%clk 0:00:26.1]} 28... Qd4 {[%clk 0:00:35.8]} 29. Kg2 {[%clk 0:00:20.5]} 29...
Re7 {[%clk 0:00:30.8]} 30. e5 {[%clk 0:00:20.4]} 30... Ng7 {[%clk 0:00:26]} 31.
Re4 {[%clk 0:00:17.1]} 31... Qa7 {[%clk 0:00:23.2]} 32. exd6 {[%clk 0:00:16.2]}
32... Rxe4 {[%clk 0:00:19.2]} 33. Qxe4 {[%clk 0:00:17.1]} 33... Re8 {[%clk
0:00:19.6]} 34. Qc2 {[%clk 0:00:13.7]} 34... cxd6 {[%clk 0:00:18.6]} 35. Rxd6
{[%clk 0:00:11.5]} 35... Qe3 {[%clk 0:00:17.6]} 36. Rc6 {[%clk 0:00:10.2]} 36...
Nf5 {[%clk 0:00:17]} 37. Rc3 {[%clk 0:00:08.6]} 37... Qe1 {[%clk 0:00:15.8]} 38.
Rc8 {[%clk 0:00:03.5]} 38... Ne3+ {[%clk 0:00:14.5]} 39. Kf3 {[%clk 0:00:03.2]}
39... Nxc2 {[%clk 0:00:14.4]} 40. Rxe8+ {[%clk 0:00:03.2]} 40... Qxe8 {[%clk
0:00:14.1]} 41. Bxc2 {[%clk 0:00:03.8]} 0-1

[Event "Early-Titled-Tuesday-Blitz-May-28-2024"]
[Site "Chess.com"]
[Date "2024.05.28"]
[Round "3"]
[White "MarlonJodar"]
[Black "Triumphmate"]
[Result "1-0"]
[WhiteElo "2314"]
[BlackElo "2487"]
[TimeControl "180+1"]
[EndTime "8:28:56 PDT"]
[Termination "MarlonJodar won by checkmate"]

1. e4 {[%clk 0:03:00.9]} 1... d5 {[%clk 0:02:56.3]} 2. exd5 {[%clk 0:03:00.7]}
2... Nf6 {[%clk 0:02:56.7]} 3. d4 {[%clk 0:03:00]} 3... Bg4 {[%clk 0:02:57]} 4.
Bb5+ {[%clk 0:02:57]} 4... c6 {[%clk 0:02:57]} 5. dxc6 {[%clk 0:02:56.9]} 5...
Nxc6 {[%clk 0:02:57.9]} 6. Ne2 {[%clk 0:02:52.6]} 6... e6 {[%clk 0:02:57.2]} 7.
O-O {[%clk 0:02:51.3]} 7... Be7 {[%clk 0:02:55.1]} 8. c4 {[%clk 0:02:50.8]} 8...
O-O {[%clk 0:02:54.9]} 9. Nbc3 {[%clk 0:02:50.6]} 9... a6 {[%clk 0:02:52]} 10.
Bxc6 {[%clk 0:02:50]} 10... bxc6 {[%clk 0:02:52.9]} 11. Be3 {[%clk 0:02:49.6]}
11... Rb8 {[%clk 0:02:49.1]} 12. Qd2 {[%clk 0:02:49]} 12... Qa5 {[%clk
0:02:45.2]} 13. h3 {[%clk 0:02:40.7]} 13... Bh5 {[%clk 0:02:40.8]} 14. Ng3
{[%clk 0:02:34.6]} 14... Bg6 {[%clk 0:02:37.9]} 15. f4 {[%clk 0:02:08.6]} 15...
Rfd8 {[%clk 0:02:31]} 16. Kh1 {[%clk 0:01:56.5]} 16... c5 {[%clk 0:01:46.8]} 17.
Nd5 {[%clk 0:01:46.5]} 17... Nxd5 {[%clk 0:01:20.8]} 18. Qxa5 {[%clk 0:01:45.8]}
18... Nxe3 {[%clk 0:01:21.5]} 19. dxc5 {[%clk 0:01:32.9]} 19... Nxc4 {[%clk
0:01:01.4]} 20. Qc3 {[%clk 0:01:28]} 20... Nxb2 {[%clk 0:00:51.3]} 21. f5 {[%clk
0:01:14.1]} 21... Bf6 {[%clk 0:00:29.3]} 22. Qf3 {[%clk 0:01:00.5]} 22... Rd3
{[%clk 0:00:16.2]} 23. Qf4 {[%clk 0:00:47.9]} 23... exf5 {[%clk 0:00:14.5]} 24.
Qxb8+ {[%clk 0:00:47.2]} 24... Rd8 {[%clk 0:00:14.7]} 25. Qb3 {[%clk 0:00:33.2]}
25... h5 {[%clk 0:00:13.4]} 26. Nxf5 {[%clk 0:00:32.1]} 26... Rd3 {[%clk
0:00:13.4]} 27. Qb8+ {[%clk 0:00:30.8]} 27... Kh7 {[%clk 0:00:13.9]} 28. Rab1
{[%clk 0:00:26.6]} 28... Rd2 {[%clk 0:00:10.5]} 29. Qg3 {[%clk 0:00:19.2]} 29...
Nd3 {[%clk 0:00:07.8]} 30. Rbd1 {[%clk 0:00:18.4]} 30... Nf2+ {[%clk 0:00:06.1]}
31. Qxf2 {[%clk 0:00:06.9]} 31... Rd5 {[%clk 0:00:04.6]} 32. Rxd5 {[%clk
0:00:06.2]} 32... h4 {[%clk 0:00:03.6]} 33. c6 {[%clk 0:00:05.9]} 33... a5
{[%clk 0:00:03.1]} 34. c7 {[%clk 0:00:05.9]} 34... Bxf5 {[%clk 0:00:04]} 35.
Qxf5+ {[%clk 0:00:05.4]} 35... g6 {[%clk 0:00:04.9]} 36. Qxf6 {[%clk 0:00:05.7]}
36... Kh6 {[%clk 0:00:05.8]} 37. Qxf7 {[%clk 0:00:06]} 37... a4 {[%clk
0:00:06.1]} 38. Rd6 {[%clk 0:00:06.1]} 38... a3 {[%clk 0:00:07]} 39. Qxg6#
{[%clk 0:00:06.4]} 1-0

[Event "Early-Titled-Tuesday-Blitz-May-28-2024"]
[Site "Chess.com"]
[Date "2024.05.28"]
[Round "3"]
[White "abelmat"]
[Black "ArchibaldCerveza29"]
[Result "1-0"]
[WhiteElo "2058"]
[BlackElo "2362"]
[TimeControl "180+1"]
[EndTime "8:28:56 PDT"]
[Termination "abelmat won by checkmate"]

1. d4 {[%clk 0:03:00.6]} 1... d5 {[%clk 0:02:51.1]} 2. c4 {[%clk 0:02:59.8]}
2... e6 {[%clk 0:02:44.3]} 3. Nf3 {[%clk 0:02:59.1]} 3... Nf6 {[%clk 0:02:43.5]}
4. Nc3 {[%clk 0:02:59.3]} 4... c6 {[%clk 0:02:43.2]} 5. e3 {[%clk 0:02:59.2]}
5... Nbd7 {[%clk 0:02:42.5]} 6. Bd3 {[%clk 0:02:59.4]} 6... Bd6 {[%clk
0:02:42.7]} 7. O-O {[%clk 0:02:58.6]} 7... O-O {[%clk 0:02:43.2]} 8. e4 {[%clk
0:02:59.1]} 8... dxe4 {[%clk 0:02:42.2]} 9. Nxe4 {[%clk 0:03:00]} 9... Nxe4
{[%clk 0:02:43.1]} 10. Bxe4 {[%clk 0:03:00.3]} 10... e5 {[%clk 0:02:38.1]} 11.
dxe5 {[%clk 0:02:53]} 11... Nxe5 {[%clk 0:02:36.2]} 12. Nxe5 {[%clk 0:02:52.8]}
12... Bxe5 {[%clk 0:02:37.1]} 13. Bxh7+ {[%clk 0:02:43.8]} 13... Kxh7 {[%clk
0:02:33.8]} 14. Qh5+ {[%clk 0:02:44]} 14... Kg8 {[%clk 0:02:34.7]} 15. Qxe5
{[%clk 0:02:43.8]} 15... Be6 {[%clk 0:02:33.7]} 16. Bg5 {[%clk 0:02:33.7]} 16...
Qd3 {[%clk 0:02:31.7]} 17. b3 {[%clk 0:02:19]} 17... Rae8 {[%clk 0:02:30.4]} 18.
Qc7 {[%clk 0:02:10.6]} 18... Qd7 {[%clk 0:02:16.2]} 19. Qg3 {[%clk 0:02:04.8]}
19... f6 {[%clk 0:02:01.9]} 20. Rad1 {[%clk 0:01:59.7]} 20... Qf7 {[%clk
0:01:59.9]} 21. Bf4 {[%clk 0:01:55.3]} 21... Rd8 {[%clk 0:01:57.6]} 22. Bc7
{[%clk 0:01:50]} 22... Rxd1 {[%clk 0:01:48]} 23. Rxd1 {[%clk 0:01:49.8]} 23...
Rc8 {[%clk 0:01:48.5]} 24. Bf4 {[%clk 0:01:43.4]} 24... a5 {[%clk 0:01:43.6]}
25. h4 {[%clk 0:01:37.9]} 25... a4 {[%clk 0:01:40.6]} 26. Rd6 {[%clk 0:01:36.6]}
26... axb3 {[%clk 0:01:37.8]} 27. axb3 {[%clk 0:01:37.5]} 27... b5 {[%clk
0:01:32.7]} 28. cxb5 {[%clk 0:01:32]} 28... cxb5 {[%clk 0:01:33.6]} 29. b4
{[%clk 0:01:28.2]} 29... Bc4 {[%clk 0:01:30]} 30. Qg4 {[%clk 0:01:20.7]} 30...
Re8 {[%clk 0:01:27.5]} 31. Rd7 {[%clk 0:01:14.3]} 31... Re7 {[%clk 0:01:24.6]}
32. Rd8+ {[%clk 0:01:11.9]} 32... Re8 {[%clk 0:01:23.9]} 33. Rd6 {[%clk
0:01:06.4]} 33... Re4 {[%clk 0:01:10.2]} 34. Qg3 {[%clk 0:00:50.6]} 34... Qa7
{[%clk 0:00:58.5]} 35. Rd8+ {[%clk 0:00:45.7]} 35... Kf7 {[%clk 0:00:28.6]} 36.
Qg4 {[%clk 0:00:34.3]} 36... Re7 {[%clk 0:00:09.9]} 37. h5 {[%clk 0:00:32.1]}
37... Qb7 {[%clk 0:00:01]} 38. Qg6+ {[%clk 0:00:29.6]} 38... Ke6 {[%clk
0:00:01.3]} 39. Rd6# {[%clk 0:00:25.3]} 1-0

[Event "Early-Titled-Tuesday-Blitz-May-28-2024"]
[Site "Chess.com"]
[Date "2024.05.28"]
[Round "3"]
[White "gabduschew"]
[Black "luachess1"]
[Result "1/2-1/2"]
[WhiteElo "2320"]
[BlackElo "1690"]
[TimeControl "180+1"]
[EndTime "8:28:56 PDT"]
[Termination "Game drawn by repetition"]

1. e4 {[%clk 0:03:00.9]} 1... c5 {[%clk 0:02:58.2]} 2. Nf3 {[%clk 0:03:00.5]}
2... e6 {[%clk 0:02:56.9]} 3. d4 {[%clk 0:02:56.3]} 3... cxd4 {[%clk 0:02:56.5]}
4. Nxd4 {[%clk 0:02:57.2]} 4... Nf6 {[%clk 0:02:55.1]} 5. Bd3 {[%clk 0:02:54.8]}
5... Nc6 {[%clk 0:02:52.2]} 6. Nxc6 {[%clk 0:02:53.7]} 6... bxc6 {[%clk
0:02:51.5]} 7. c4 {[%clk 0:02:54.6]} 7... d5 {[%clk 0:02:45.3]} 8. cxd5 {[%clk
0:02:54.9]} 8... cxd5 {[%clk 0:02:41.4]} 9. e5 {[%clk 0:02:55.2]} 9... Nd7
{[%clk 0:02:39.2]} 10. Bf4 {[%clk 0:02:48.3]} 10... Be7 {[%clk 0:02:24.4]} 11.
O-O {[%clk 0:02:44.1]} 11... Qb6 {[%clk 0:02:17.8]} 12. b3 {[%clk 0:02:01.3]}
12... Qd4 {[%clk 0:02:05.6]} 13. Be3 {[%clk 0:01:24.5]} 13... Qxa1 {[%clk
0:02:00.4]} 14. Qc2 {[%clk 0:01:24.8]} 14... d4 {[%clk 0:01:44.8]} 15. Bd2
{[%clk 0:00:32.2]} 15... O-O {[%clk 0:01:26.1]} 16. Nc3 {[%clk 0:00:26.6]} 16...
Qxf1+ {[%clk 0:01:18.9]} 17. Kxf1 {[%clk 0:00:24.6]} 17... dxc3 {[%clk
0:01:18.5]} 18. Bxc3 {[%clk 0:00:23.7]} 18... g6 {[%clk 0:01:12]} 19. Be4 {[%clk
0:00:18.8]} 19... Rb8 {[%clk 0:01:09]} 20. Bd2 {[%clk 0:00:18.1]} 20... Ba6+
{[%clk 0:01:07]} 21. Kg1 {[%clk 0:00:17.2]} 21... Rfc8 {[%clk 0:01:03.1]} 22.
Qd1 {[%clk 0:00:17.5]} 22... Nc5 {[%clk 0:00:59.7]} 23. Bb1 {[%clk 0:00:16.2]}
23... Bd3 {[%clk 0:00:58.2]} 24. Bh6 {[%clk 0:00:14.4]} 24... Bxb1 {[%clk
0:00:55.2]} 25. Qxb1 {[%clk 0:00:15.3]} 25... Bf8 {[%clk 0:00:55.1]} 26. Bg5
{[%clk 0:00:15.1]} 26... Bg7 {[%clk 0:00:54.4]} 27. f4 {[%clk 0:00:13.4]} 27...
Nd7 {[%clk 0:00:52.5]} 28. h3 {[%clk 0:00:12.3]} 28... Nf8 {[%clk 0:00:51.2]}
29. Be7 {[%clk 0:00:10.9]} 29... Rb7 {[%clk 0:00:49.3]} 30. Bd6 {[%clk
0:00:11.3]} 30... Rc6 {[%clk 0:00:48]} 31. Qe4 {[%clk 0:00:11.4]} 31... Rbb6
{[%clk 0:00:47.7]} 32. Kh2 {[%clk 0:00:10.8]} 32... Nd7 {[%clk 0:00:46.1]} 33.
b4 {[%clk 0:00:08.9]} 33... Bf8 {[%clk 0:00:46]} 34. Bxf8 {[%clk 0:00:06.9]}
34... Kxf8 {[%clk 0:00:46.9]} 35. a3 {[%clk 0:00:07.8]} 35... Rc1 {[%clk
0:00:44]} 36. a4 {[%clk 0:00:07.9]} 36... Rbc6 {[%clk 0:00:44]} 37. b5 {[%clk
0:00:07.8]} 37... R6c4 {[%clk 0:00:43.4]} 38. Qa8+ {[%clk 0:00:07.6]} 38... Kg7
{[%clk 0:00:43.3]} 39. Qxa7 {[%clk 0:00:08.4]} 39... Nc5 {[%clk 0:00:41.5]} 40.
b6 {[%clk 0:00:08.5]} 40... Rxa4 {[%clk 0:00:40.2]} 41. Qe7 {[%clk 0:00:08.5]}
41... Rb4 {[%clk 0:00:37.9]} 42. Qf6+ {[%clk 0:00:07.9]} 42... Kf8 {[%clk
0:00:35.6]} 43. Qd8+ {[%clk 0:00:08.5]} 43... Kg7 {[%clk 0:00:35.8]} 44. Qf6+
{[%clk 0:00:04.7]} 44... Kf8 {[%clk 0:00:32.5]} 45. Qd8+ {[%clk 0:00:04.8]}
45... Kg7 {[%clk 0:00:32.9]} 46. Qf6+ {[%clk 0:00:05.3]} 1/2-1/2

[Event "Early-Titled-Tuesday-Blitz-May-28-2024"]
[Site "Chess.com"]
[Date "2024.05.28"]
[Round "3"]
[White "Irina_Mikhaylova"]
[Black "Msb2"]
[Result "0-1"]
[WhiteElo "2340"]
[BlackElo "3045"]
[TimeControl "180+1"]
[EndTime "8:28:57 PDT"]
[Termination "Msb2 won on time"]

1. d4 {[%clk 0:03:00.9]} 1... d5 {[%clk 0:03:00.3]} 2. Nf3 {[%clk 0:03:01.1]}
2... e6 {[%clk 0:03:00.9]} 3. c4 {[%clk 0:03:01.3]} 3... Nf6 {[%clk 0:03:01.3]}
4. Bg5 {[%clk 0:03:01.4]} 4... h6 {[%clk 0:03:01.1]} 5. Bh4 {[%clk 0:02:59.3]}
5... Bb4+ {[%clk 0:03:00.9]} 6. Nc3 {[%clk 0:02:53.9]} 6... dxc4 {[%clk
0:03:00.6]} 7. Bxf6 {[%clk 0:02:52.7]} 7... Qxf6 {[%clk 0:03:01.5]} 8. e4 {[%clk
0:02:52.8]} 8... b5 {[%clk 0:02:57.5]} 9. e5 {[%clk 0:02:35.3]} 9... Qg6 {[%clk
0:02:44.2]} 10. a4 {[%clk 0:02:34.8]} 10... Bb7 {[%clk 0:02:37.2]} 11. axb5
{[%clk 0:02:31.7]} 11... O-O {[%clk 0:02:37.5]} 12. g3 {[%clk 0:02:24.8]} 12...
Qe4+ {[%clk 0:02:03.5]} 13. Be2 {[%clk 0:02:24.4]} 13... Qf5 {[%clk 0:02:02.6]}
14. O-O {[%clk 0:02:13.8]} 14... Nd7 {[%clk 0:02:02.6]} 15. Nh4 {[%clk
0:02:06.1]} 15... Qh3 {[%clk 0:01:58.5]} 16. Bf3 {[%clk 0:02:05.7]} 16... Bxf3
{[%clk 0:01:58.2]} 17. Qxf3 {[%clk 0:01:52]} 17... Bxc3 {[%clk 0:01:56.8]} 18.
bxc3 {[%clk 0:01:34.6]} 18... Nb6 {[%clk 0:01:56.9]} 19. Qg2 {[%clk 0:01:28.6]}
19... Qxg2+ {[%clk 0:01:52.9]} 20. Nxg2 {[%clk 0:01:26.9]} 20... Nd5 {[%clk
0:01:52.9]} 21. Rfc1 {[%clk 0:01:26.7]} 21... Rfb8 {[%clk 0:01:51.1]} 22. Ra5
{[%clk 0:01:26.7]} 22... Rb7 {[%clk 0:01:33.3]} 23. Ne3 {[%clk 0:01:26.7]} 23...
Nxe3 {[%clk 0:01:33.9]} 24. fxe3 {[%clk 0:01:26.9]} 24... Rab8 {[%clk
0:01:34.8]} 25. Kf2 {[%clk 0:01:02.2]} 25... Rxb5 {[%clk 0:01:31.9]} 26. Rxa7
{[%clk 0:01:02.3]} 26... Rb2+ {[%clk 0:01:32]} 27. Kf3 {[%clk 0:01:02.4]} 27...
c5 {[%clk 0:01:26]} 28. Ra4 {[%clk 0:00:55.2]} 28... cxd4 {[%clk 0:01:25.3]} 29.
cxd4 {[%clk 0:00:51.2]} 29... Rxh2 {[%clk 0:01:23.3]} 30. Raxc4 {[%clk
0:00:49.4]} 30... Rbb2 {[%clk 0:01:23.9]} 31. Rc8+ {[%clk 0:00:46.3]} 31... Kh7
{[%clk 0:01:24.3]} 32. R1c7 {[%clk 0:00:45]} 32... h5 {[%clk 0:01:22.4]} 33. Ke4
{[%clk 0:00:43.2]} 33... Kg6 {[%clk 0:01:21.1]} 34. Rf8 {[%clk 0:00:42.5]} 34...
Rbf2 {[%clk 0:01:20.4]} 35. Re7 {[%clk 0:00:32.6]} 35... Rhg2 {[%clk 0:01:17.4]}
36. Kd3 {[%clk 0:00:30.3]} 36... Rf5 {[%clk 0:01:13]} 37. e4 {[%clk 0:00:10.5]}
37... Rf3+ {[%clk 0:01:10.7]} 38. Kc4 {[%clk 0:00:09.4]} 38... Rgxg3 {[%clk
0:01:09.9]} 39. d5 {[%clk 0:00:09.9]} 39... Rc3+ {[%clk 0:01:05.3]} 40. Kb4
{[%clk 0:00:08.9]} 40... Rb3+ {[%clk 0:01:04.9]} 41. Kc4 {[%clk 0:00:08.4]}
41... Rbc3+ {[%clk 0:01:04.5]} 42. Kb4 {[%clk 0:00:08.4]} 42... Rce3 {[%clk
0:01:01.4]} 43. Rfxf7 {[%clk 0:00:02.6]} 43... Rxe4+ {[%clk 0:01:01.8]} 44. Kc5
{[%clk 0:00:03.1]} 44... Ra3 {[%clk 0:00:29.7]} 45. Rxg7+ {[%clk 0:00:00.6]}
45... Kh6 {[%clk 0:00:30.6]} 0-1